Workbook

Sheet 貸款計算機
B2: 大學助學貸款 | G2: NT$1,500,000 | L2: 4067300.00%
B3: 計算機
B5: 建議每月學生貸款返還總金額不超過第一年年薪的 8%。
C7: 您目前每月還款合計金額： | F7: =CollegeLoans[[#Totals],[目前每月還款金額]] -> NT$9,857.58 | I7: 您的預定每月還款合計金額： | M7: =CollegeLoans[[#Totals],[預定還款金額]] -> NT$9,857.58
C8: 佔每月收入百分比： | F8: =CollegeLoans[[#Totals],[目前每月還款金額]]/EstimatedMonthlySalary -> 7.89% | I8: 佔每月收入百分比： | M8: =CollegeLoans[[#Totals],[預定還款金額]]/EstimatedMonthlySalary -> 7.89%
C11: 一般貸款詳細資料 | G11: 貸款償還資料 | J11: 還款詳細資料
C12: 貸款編號 | D12: 貸方 | E12: 貸款金額 | F12: 年 利率 | G12: 開始日期 | H12: 期間 (年) | I12: 結束日期 | J12: 目前每月還款金額 | K12: 總 利息 | L12: 預定還款金額 | M12: 每年 還款金額
C13: 10998M88 | D13: 貸方 1 | E13: NT$300,000.00 | F13: 5.00% | G13: 4063400.00% | H13: 10 | I13: =IF(AND(CollegeLoans[[#This Row],[開始日期]]>0,CollegeLoans[[#This Row],[期間 (年)]]>0),EDATE(CollegeLoans[[#This Row],[開始日期]],CollegeLoans[[#This Row],[期間 (年)]]*12),"") -> 4428700.00% | J13: =IF(AND(LoanStartLToday,COUNT(CollegeLoans[[#This Row],[貸款金額]:[期間 (年)]])=4,CollegeLoans[[#This Row],[開始日期]]<TODAY()),PMT(CollegeLoans[[#This Row],[年 利率]]/12,CollegeLoans[[#This Row],[期間 (年)]]*12,-CollegeLoans[[#This Row],[貸款金額]],0,0),"") -> NT$3,181.97 | K13: =IFERROR((CollegeLoans[[#This Row],[預定還款金額]]*(CollegeLoans[[#This Row],[期間 (年)]]*12))-CollegeLoans[[#This Row],[貸款金額]],"") -> NT$81,835.85 | L13: =IF(COUNTA(CollegeLoans[[#This Row],[貸款金額]:[期間 (年)]])<>4,"",PMT(CollegeLoans[[#This Row],[年 利率]]/12,CollegeLoans[[#This Row],[期間 (年)]]*12,-CollegeLoans[[#This Row],[貸款金額]],0,0)) -> NT$3,181.97 | M13: =IFERROR(CollegeLoans[[#This Row],[預定還款金額]]*12,"") -> NT$38,183.59
C14: 20987N87 | D14: 貸方 2 | E14: NT$240,000.00 | F14: 5.00% | G14: 4066400.00% | H14: 10 | I14: =IF(AND(CollegeLoans[[#This Row],[開始日期]]>0,CollegeLoans[[#This Row],[期間 (年)]]>0),EDATE(CollegeLoans[[#This Row],[開始日期]],CollegeLoans[[#This Row],[期間 (年)]]*12),"") -> 4431700.00% | J14: =IF(AND(LoanStartLToday,COUNT(CollegeLoans[[#This Row],[貸款金額]:[期間 (年)]])=4,CollegeLoans[[#This Row],[開始日期]]<TODAY()),PMT(CollegeLoans[[#This Row],[年 利率]]/12,CollegeLoans[[#This Row],[期間 (年)]]*12,-CollegeLoans[[#This Row],[貸款金額]],0,0),"") -> NT$2,545.57 | K14: =IFERROR((CollegeLoans[[#This Row],[預定還款金額]]*(CollegeLoans[[#This Row],[期間 (年)]]*12))-CollegeLoans[[#This Row],[貸款金額]],"") -> NT$65,468.68 | L14: =IF(COUNTA(CollegeLoans[[#This Row],[貸款金額]:[期間 (年)]])<>4,"",PMT(CollegeLoans[[#This Row],[年 利率]]/12,CollegeLoans[[#This Row],[期間 (年)]]*12,-CollegeLoans[[#This Row],[貸款金額]],0,0)) -> NT$2,545.57 | M14: =IFERROR(CollegeLoans[[#This Row],[預定還款金額]]*12,"") -> NT$30,546.87
C15: 36785LM | D15: 貸方 3 | E15: NT$180,000.00 | F15: 4.50% | G15: 4096900.00% | H15: 10 | I15: =IF(AND(CollegeLoans[[#This Row],[開始日期]]>0,CollegeLoans[[#This Row],[期間 (年)]]>0),EDATE(CollegeLoans[[#This Row],[開始日期]],CollegeLoans[[#This Row],[期間 (年)]]*12),"") -> 4462100.00% | J15: =IF(AND(LoanStartLToday,COUNT(CollegeLoans[[#This Row],[貸款金額]:[期間 (年)]])=4,CollegeLoans[[#This Row],[開始日期]]<TODAY()),PMT(CollegeLoans[[#This Row],[年 利率]]/12,CollegeLoans[[#This Row],[期間 (年)]]*12,-CollegeLoans[[#This Row],[貸款金額]],0,0),"") -> NT$1,865.49 | K15: =IFERROR((CollegeLoans[[#This Row],[預定還款金額]]*(CollegeLoans[[#This Row],[期間 (年)]]*12))-CollegeLoans[[#This Row],[貸款金額]],"") -> NT$43,858.96 | L15: =IF(COUNTA(CollegeLoans[[#This Row],[貸款金額]:[期間 (年)]])<>4,"",PMT(CollegeLoans[[#This Row],[年 利率]]/12,CollegeLoans[[#This Row],[期間 (年)]]*12,-CollegeLoans[[#This Row],[貸款金額]],0,0)) -> NT$1,865.49 | M15: =IFERROR(CollegeLoans[[#This Row],[預定還款金額]]*12,"") -> NT$22,385.90
C16: 765R43 | D16: 貸方 4 | E16: NT$120,000.00 | F16: 5.00% | G16: 4103000.00% | H16: 5 | I16: =IF(AND(CollegeLoans[[#This Row],[開始日期]]>0,CollegeLoans[[#This Row],[期間 (年)]]>0),EDATE(CollegeLoans[[#This Row],[開始日期]],CollegeLoans[[#This Row],[期間 (年)]]*12),"") -> 4285600.00% | J16: =IF(AND(LoanStartLToday,COUNT(CollegeLoans[[#This Row],[貸款金額]:[期間 (年)]])=4,CollegeLoans[[#This Row],[開始日期]]<TODAY()),PMT(CollegeLoans[[#This Row],[年 利率]]/12,CollegeLoans[[#This Row],[期間 (年)]]*12,-CollegeLoans[[#This Row],[貸款金額]],0,0),"") -> NT$2,264.55 | K16: =IFERROR((CollegeLoans[[#This Row],[預定還款金額]]*(CollegeLoans[[#This Row],[期間 (年)]]*12))-CollegeLoans[[#This Row],[貸款金額]],"") -> NT$15,872.88 | L16: =IF(COUNTA(CollegeLoans[[#This Row],[貸款金額]:[期間 (年)]])<>4,"",PMT(CollegeLoans[[#This Row],[年 利率]]/12,CollegeLoans[[#This Row],[期間 (年)]]*12,-CollegeLoans[[#This Row],[貸款金額]],0,0)) -> NT$2,264.55 | M16: =IFERROR(CollegeLoans[[#This Row],[預定還款金額]]*12,"") -> NT$27,174.58
C17: 合計 | E17: =SUBTOTAL(109,CollegeLoans[貸款金額]) -> NT$840,000.00 | J17: =SUBTOTAL(109,CollegeLoans[目前每月還款金額]) -> NT$9,857.58 | K17: =SUBTOTAL(109,CollegeLoans[總 利息]) -> NT$207,036.38 | L17: =SUBTOTAL(109,CollegeLoans[預定還款金額]) -> NT$9,857.58 | M17: =SUBTOTAL(109,CollegeLoans[每年 還款金額]) -> NT$118,290.93
C18: 平均 | E18: =AVERAGE(CollegeLoans[貸款金額]) -> NT$210,000.00 | F18: =AVERAGE(CollegeLoans[年 利率]) -> 4.88% | K18: =AVERAGE(CollegeLoans[總 利息]) -> NT$51,759.10 | M18: =AVERAGE(CollegeLoans[每年 還款金額]) -> NT$29,572.73
K20: 合併貸款償還總額： | M20: =CollegeLoans[[#Totals],[貸款金額]]+CollegeLoans[[#Totals],[總 利息]] -> NT$1,047,036.38
K22: 預估畢業後月收入： | M22: =(EstimatedAnnualSalary/12) -> NT$125,000.00
